[Event "*** Titled Tuesday Blitz"]
[Site "Chess.com"]
[Date "2020.05.26"]
[Round "6"]
[White "avantage_ru"]
[Black "Onwgs"]
[Result "1-0"]
[WhiteElo "2716"]
[BlackElo "2475"]
[TimeControl "180+1"]
[EndTime "11:07:00 PDT"]
[Termination "avantage_ru won by resignation"]

1. b3 {[%clk 0:03:00.9]} 1... Nf6 {[%clk 0:02:58.6]} 2. Bb2 {[%clk 0:03:00.8]}
2... d5 {[%clk 0:02:58.7]} 3. g3 {[%clk 0:02:59.5]} 3... g6 {[%clk 0:02:59]} 4.
Bg2 {[%clk 0:02:58.9]} 4... Bg7 {[%clk 0:02:59.2]} 5. c4 {[%clk 0:02:59.1]} 5...
c6 {[%clk 0:02:58.1]} 6. Nf3 {[%clk 0:02:59.1]} 6... O-O {[%clk 0:02:57.7]} 7.
O-O {[%clk 0:02:59.1]} 7... Nbd7 {[%clk 0:02:54.1]} 8. Qc2 {[%clk 0:02:55.9]}
8... Re8 {[%clk 0:02:52.1]} 9. Rc1 {[%clk 0:02:54.6]} 9... e5 {[%clk 0:02:50.7]}
10. cxd5 {[%clk 0:02:54.6]} 10... Nxd5 {[%clk 0:02:51.6]} 11. d3 {[%clk
0:02:47.3]} 11... Qe7 {[%clk 0:02:50.3]} 12. Nbd2 {[%clk 0:02:44.1]} 12... N7b6
{[%clk 0:02:46.6]} 13. a3 {[%clk 0:02:43.1]} 13... Bg4 {[%clk 0:02:36.7]} 14.
Nc4 {[%clk 0:02:41.9]} 14... Nxc4 {[%clk 0:02:32.3]} 15. bxc4 {[%clk 0:02:41.3]}
15... Nc7 {[%clk 0:02:29.5]} 16. h3 {[%clk 0:02:40.1]} 16... Bf5 {[%clk
0:02:25.1]} 17. Rab1 {[%clk 0:02:23]} 17... Rad8 {[%clk 0:02:15.6]} 18. Nd2
{[%clk 0:02:22.2]} 18... Na6 {[%clk 0:02:08.2]} 19. Bc3 {[%clk 0:02:14.6]} 19...
Qxa3 {[%clk 0:02:00.8]} 20. Rxb7 {[%clk 0:02:11.8]} 20... Nc5 {[%clk 0:01:53.6]}
21. Rc7 {[%clk 0:01:59]} 21... e4 {[%clk 0:01:34]} 22. Bxg7 {[%clk 0:01:56.7]}
22... Kxg7 {[%clk 0:01:25.7]} 23. dxe4 {[%clk 0:01:55.7]} 23... Be6 {[%clk
0:01:24.5]} 24. Rxc6 {[%clk 0:01:41]} 24... Kg8 {[%clk 0:01:21]} 25. Nf1 {[%clk
0:01:24.7]} 25... Bd7 {[%clk 0:01:13.5]} 26. Rf6 {[%clk 0:01:16]} 26... Ba4
{[%clk 0:01:10.6]} 27. Qc3 {[%clk 0:01:15.9]} 27... Nb3 {[%clk 0:01:04.2]} 28.
Re1 {[%clk 0:01:07.1]} 28... Qc5 {[%clk 0:00:55.7]} 29. Ne3 {[%clk 0:01:00.4]}
29... Nd2 {[%clk 0:00:48.8]} 30. Ra6 {[%clk 0:00:58.4]} 30... Bc6 {[%clk
0:00:33.6]} 31. Ng4 {[%clk 0:00:54.3]} 31... Rd6 {[%clk 0:00:17.9]} 32. e5
{[%clk 0:00:49.5]} 32... Rde6 {[%clk 0:00:15.4]} 33. Bxc6 {[%clk 0:00:47.2]} 1-0

[Event "*** Titled Tuesday Blitz"]
[Site "Chess.com"]
[Date "2020.05.26"]
[Round "6"]
[White "MaxVavulin"]
[Black "kleopl"]
[Result "1-0"]
[WhiteElo "2619"]
[BlackElo "2427"]
[TimeControl "180+1"]
[EndTime "11:07:00 PDT"]
[Termination "MaxVavulin won by resignation"]

1. e4 {[%clk 0:03:00.9]} 1... d5 {[%clk 0:02:59.2]} 2. exd5 {[%clk 0:03:00.6]}
2... Qxd5 {[%clk 0:03:00.1]} 3. Nc3 {[%clk 0:03:01.1]} 3... Qd6 {[%clk
0:03:00.3]} 4. d4 {[%clk 0:03:00.9]} 4... Nf6 {[%clk 0:03:00.6]} 5. Nf3 {[%clk
0:03:01.3]} 5... c6 {[%clk 0:03:00.8]} 6. g3 {[%clk 0:03:01.6]} 6... Bf5 {[%clk
0:03:00.1]} 7. Bg2 {[%clk 0:03:01.4]} 7... e6 {[%clk 0:03:00.4]} 8. O-O {[%clk
0:02:56.5]} 8... Be7 {[%clk 0:02:59.9]} 9. Ne5 {[%clk 0:02:48.9]} 9... O-O
{[%clk 0:02:58.5]} 10. a3 {[%clk 0:02:33.1]} 10... Nd5 {[%clk 0:02:52.5]} 11.
Ne4 {[%clk 0:02:29.7]} 11... Bxe4 {[%clk 0:02:51.4]} 12. Bxe4 {[%clk 0:02:29.1]}
12... Nd7 {[%clk 0:02:43.1]} 13. Nd3 {[%clk 0:02:20.7]} 13... N7f6 {[%clk
0:02:40.1]} 14. Bg2 {[%clk 0:02:20]} 14... Rfd8 {[%clk 0:02:35.6]} 15. c3 {[%clk
0:02:19.9]} 15... Rac8 {[%clk 0:02:32.8]} 16. Qe2 {[%clk 0:02:19.3]} 16... Qc7
{[%clk 0:02:26.4]} 17. Bd2 {[%clk 0:02:05.5]} 17... b6 {[%clk 0:02:14.2]} 18.
Rad1 {[%clk 0:02:02.5]} 18... Qd7 {[%clk 0:01:57]} 19. Ne5 {[%clk 0:01:55.6]}
19... Qe8 {[%clk 0:01:56]} 20. c4 {[%clk 0:01:55.3]} 20... Nc7 {[%clk
0:01:46.6]} 21. Nxc6 {[%clk 0:01:54.7]} 21... Rd6 {[%clk 0:01:42.8]} 22. Nxe7+
{[%clk 0:01:52.2]} 22... Qxe7 {[%clk 0:01:41.5]} 23. Bb4 {[%clk 0:01:52.7]}
23... Qd7 {[%clk 0:01:36.2]} 24. Bxd6 {[%clk 0:01:39.4]} 24... Qxd6 {[%clk
0:01:37.1]} 25. Qe5 {[%clk 0:01:33.4]} 25... Qd7 {[%clk 0:01:36.6]} 26. Rfe1
{[%clk 0:01:24.9]} 26... Na6 {[%clk 0:01:36.3]} 27. d5 {[%clk 0:01:23.3]} 27...
exd5 {[%clk 0:01:28.1]} 28. cxd5 {[%clk 0:01:23.2]} 28... h6 {[%clk 0:01:25.3]}
29. d6 {[%clk 0:01:22.1]} 29... Nc5 {[%clk 0:01:23.8]} 30. Qe7 {[%clk
0:01:20.2]} 30... Qf5 {[%clk 0:01:20.1]} 31. Qxa7 {[%clk 0:01:11.2]} 31... Ng4
{[%clk 0:01:08.8]} 32. Re2 {[%clk 0:01:05.7]} 32... Nd7 {[%clk 0:00:50.7]} 33.
Qb7 {[%clk 0:00:57.5]} 33... Rc2 {[%clk 0:00:47.1]} 34. Qa8+ {[%clk 0:00:49.9]}
34... Nf8 {[%clk 0:00:43.8]} 35. Qf3 {[%clk 0:00:36.4]} 1-0

[Event "*** Titled Tuesday Blitz"]
[Site "Chess.com"]
[Date "2020.05.26"]
[Round "6"]
[White "Agnes66678"]
[Black "CrazyMartian"]
[Result "1-0"]
[WhiteElo "2477"]
[BlackElo "2304"]
[TimeControl "180+1"]
[EndTime "11:07:00 PDT"]
[Termination "Agnes66678 won by resignation"]

1. d4 {[%clk 0:02:59.4]} 1... d5 {[%clk 0:02:59.3]} 2. c4 {[%clk 0:02:59.5]}
2... e6 {[%clk 0:02:59.6]} 3. Nf3 {[%clk 0:02:59.7]} 3... Nf6 {[%clk 0:02:58]}
4. g3 {[%clk 0:03:00.2]} 4... Bb4+ {[%clk 0:02:57.2]} 5. Bd2 {[%clk 0:02:59.5]}
5... Bd6 {[%clk 0:02:57.3]} 6. Bg5 {[%clk 0:02:58.3]} 6... c6 {[%clk 0:02:55.3]}
7. Nc3 {[%clk 0:02:58.2]} 7... h6 {[%clk 0:02:54.4]} 8. Bf4 {[%clk 0:02:53.2]}
8... Bxf4 {[%clk 0:02:52.4]} 9. gxf4 {[%clk 0:02:54.1]} 9... Nbd7 {[%clk
0:02:44.3]} 10. e3 {[%clk 0:02:52.1]} 10... a6 {[%clk 0:02:40.1]} 11. Rg1 {[%clk
0:02:51.6]} 11... g6 {[%clk 0:02:36.9]} 12. Ne5 {[%clk 0:02:48.6]} 12... Nxe5
{[%clk 0:02:29.6]} 13. fxe5 {[%clk 0:02:49.5]} 13... Nd7 {[%clk 0:02:26.2]} 14.
c5 {[%clk 0:02:40.5]} 14... b6 {[%clk 0:02:22.1]} 15. b4 {[%clk 0:02:39.9]}
15... a5 {[%clk 0:02:21.1]} 16. a3 {[%clk 0:02:39.4]} 16... axb4 {[%clk
0:02:17.2]} 17. axb4 {[%clk 0:02:40.3]} 17... Rxa1 {[%clk 0:02:16.6]} 18. Qxa1
{[%clk 0:02:40.4]} 18... bxc5 {[%clk 0:02:16.9]} 19. bxc5 {[%clk 0:02:39.4]}
19... Bb7 {[%clk 0:02:10.1]} 20. Bd3 {[%clk 0:02:38.8]} 20... O-O {[%clk
0:02:02.9]} 21. Qb1 {[%clk 0:02:32.2]} 21... Qa8 {[%clk 0:01:18.3]} 22. Bxg6
{[%clk 0:02:28.6]} 22... Kh8 {[%clk 0:01:07.1]} 23. Bc2 {[%clk 0:02:08.2]} 23...
Rg8 {[%clk 0:01:03.8]} 24. Rg3 {[%clk 0:02:05.9]} 24... Qa5 {[%clk 0:00:53.9]}
25. Kd2 {[%clk 0:02:04.7]} 25... Ba6 {[%clk 0:00:51.2]} 26. Qg1 {[%clk
0:01:51.5]} 26... Rxg3 {[%clk 0:00:49.6]} 27. Qxg3 {[%clk 0:01:52.4]} 27... Qd8
{[%clk 0:00:46.5]} 28. h4 {[%clk 0:01:50.4]} 28... Qg8 {[%clk 0:00:45.9]} 29.
Qf4 {[%clk 0:01:49.5]} 29... Qg7 {[%clk 0:00:44.4]} 30. Ne2 {[%clk 0:01:41.8]}
30... Bxe2 {[%clk 0:00:43.2]} 31. Kxe2 {[%clk 0:01:42]} 31... Nf8 {[%clk
0:00:39.7]} 32. h5 {[%clk 0:01:36.6]} 32... Nh7 {[%clk 0:00:37.5]} 33. Ba4
{[%clk 0:01:36.5]} 33... Qg1 {[%clk 0:00:25.3]} 34. Bxc6 {[%clk 0:01:25.6]}
34... Ng5 {[%clk 0:00:19.6]} 35. Qf6+ {[%clk 0:01:05.2]} 35... Kh7 {[%clk
0:00:19]} 36. Qd8 {[%clk 0:01:05]} 36... Qc1 {[%clk 0:00:17.5]} 37. Qa5 {[%clk
0:01:00.2]} 37... Qc2+ {[%clk 0:00:17.3]} 38. Qd2 {[%clk 0:00:59.4]} 38... Qa4
{[%clk 0:00:12.6]} 39. Bxa4 {[%clk 0:00:58.2]} 1-0

[Event "*** Titled Tuesday Blitz"]
[Site "Chess.com"]
[Date "2020.05.26"]
[Round "6"]
[White "ErikRonka"]
[Black "Bhagya_2312"]
[Result "1-0"]
[WhiteElo "2378"]
[BlackElo "2108"]
[TimeControl "180+1"]
[EndTime "11:07:02 PDT"]
[Termination "ErikRonka won by resignation"]

1. e4 {[%clk 0:02:54.7]} 1... c6 {[%clk 0:02:59.7]} 2. Nf3 {[%clk 0:02:33.4]}
2... d5 {[%clk 0:02:58.8]} 3. Nc3 {[%clk 0:02:32.1]} 3... dxe4 {[%clk
0:02:58.2]} 4. Nxe4 {[%clk 0:02:33]} 4... Nf6 {[%clk 0:02:57.6]} 5. Qe2 {[%clk
0:02:31.4]} 5... Nxe4 {[%clk 0:02:51.2]} 6. Qxe4 {[%clk 0:02:32.3]} 6... Qd5
{[%clk 0:02:51]} 7. Qf4 {[%clk 0:02:26.7]} 7... Bf5 {[%clk 0:02:40.3]} 8. Bc4
{[%clk 0:02:23.9]} 8... Qe4+ {[%clk 0:02:39.5]} 9. Qxe4 {[%clk 0:02:23.5]} 9...
Bxe4 {[%clk 0:02:37.7]} 10. Bxf7+ {[%clk 0:02:23.9]} 10... Kxf7 {[%clk
0:02:37.2]} 11. Ng5+ {[%clk 0:02:24.1]} 11... Kg6 {[%clk 0:02:36.3]} 12. Nxe4
{[%clk 0:02:25]} 12... e5 {[%clk 0:02:34.9]} 13. O-O {[%clk 0:02:22.1]} 13...
Nd7 {[%clk 0:02:34.8]} 14. d3 {[%clk 0:02:21.4]} 14... Be7 {[%clk 0:02:34.5]}
15. f4 {[%clk 0:02:10.1]} 15... Rhf8 {[%clk 0:02:30.9]} 16. Bd2 {[%clk
0:02:07.7]} 16... exf4 {[%clk 0:02:24.2]} 17. Bxf4 {[%clk 0:02:06.8]} 17... Nb6
{[%clk 0:02:19.9]} 18. Rae1 {[%clk 0:02:00.7]} 18... Nd5 {[%clk 0:02:10.3]} 19.
Bd2 {[%clk 0:01:54.6]} 19... Rxf1+ {[%clk 0:01:54.3]} 20. Rxf1 {[%clk
0:01:52.1]} 20... h6 {[%clk 0:01:40.4]} 21. a3 {[%clk 0:01:48]} 21... Re8 {[%clk
0:01:31.9]} 22. g3 {[%clk 0:01:25.7]} 22... Bd8 {[%clk 0:01:27.2]} 23. Kg2
{[%clk 0:01:10]} 23... Bb6 {[%clk 0:01:25.1]} 24. Re1 {[%clk 0:01:03.2]} 24...
Rf8 {[%clk 0:01:19.7]} 25. Re2 {[%clk 0:01:00.4]} 25... Rf5 {[%clk 0:01:08]} 26.
Nd6 {[%clk 0:00:52.5]} 26... Rf8 {[%clk 0:00:58.7]} 27. Nxb7 {[%clk 0:00:46.3]}
27... Rb8 {[%clk 0:00:57.7]} 28. Nd6 {[%clk 0:00:43.7]} 28... Bd4 {[%clk
0:00:57.1]} 29. c3 {[%clk 0:00:35.1]} 29... Bf6 {[%clk 0:00:55.4]} 30. Nc4
{[%clk 0:00:33.8]} 30... h5 {[%clk 0:00:49.7]} 31. d4 {[%clk 0:00:34]} 31... h4
{[%clk 0:00:49.1]} 32. Re6 {[%clk 0:00:31.3]} 32... hxg3 {[%clk 0:00:37.6]} 33.
hxg3 {[%clk 0:00:32.2]} 33... Kf7 {[%clk 0:00:30.5]} 34. Rxc6 {[%clk 0:00:30.5]}
34... Re8 {[%clk 0:00:30.3]} 35. Nd6+ {[%clk 0:00:28.1]} 1-0

[Event "*** Titled Tuesday Blitz"]
[Site "Chess.com"]
[Date "2020.05.26"]
[Round "6"]
[White "latixxa"]
[Black "Tejas_Rama"]
[Result "0-1"]
[WhiteElo "2124"]
[BlackElo "2386"]
[TimeControl "180+1"]
[EndTime "11:07:03 PDT"]
[Termination "Tejas_Rama won by resignation"]

1. d4 {[%clk 0:03:00.9]} 1... Nf6 {[%clk 0:02:59.1]} 2. Nf3 {[%clk 0:03:00.6]}
2... e6 {[%clk 0:02:58.8]} 3. Bg5 {[%clk 0:03:00.1]} 3... c5 {[%clk 0:02:57]} 4.
e3 {[%clk 0:02:59.2]} 4... b6 {[%clk 0:02:52.9]} 5. c3 {[%clk 0:02:58.3]} 5...
Bb7 {[%clk 0:02:52.4]} 6. Nbd2 {[%clk 0:02:58.5]} 6... Be7 {[%clk 0:02:51.7]} 7.
Bd3 {[%clk 0:02:58.3]} 7... O-O {[%clk 0:02:51.3]} 8. Qc2 {[%clk 0:02:54.4]}
8... h6 {[%clk 0:02:50.7]} 9. Bxf6 {[%clk 0:02:53.5]} 9... Bxf6 {[%clk
0:02:51.6]} 10. h4 {[%clk 0:02:52.3]} 10... Nc6 {[%clk 0:02:44.1]} 11. g4 {[%clk
0:02:49.9]} 11... cxd4 {[%clk 0:02:39.7]} 12. exd4 {[%clk 0:02:47.5]} 12... Rc8
{[%clk 0:02:29.2]} 13. Qd1 {[%clk 0:02:43.1]} 13... g6 {[%clk 0:02:12.5]} 14.
Qe2 {[%clk 0:02:32.4]} 14... e5 {[%clk 0:02:03.4]} 15. d5 {[%clk 0:02:21.8]}
15... Ne7 {[%clk 0:01:59.4]} 16. c4 {[%clk 0:02:20.3]} 16... b5 {[%clk
0:01:54.1]} 17. b3 {[%clk 0:02:19.9]} 17... bxc4 {[%clk 0:01:53]} 18. bxc4
{[%clk 0:02:20.8]} 18... e4 {[%clk 0:01:51.5]} 19. Rb1 {[%clk 0:01:47.2]} 19...
exd3 {[%clk 0:01:43.8]} 20. Qxd3 {[%clk 0:01:48.1]} 20... Ba6 {[%clk 0:01:37.1]}
21. g5 {[%clk 0:01:46]} 21... hxg5 {[%clk 0:01:31]} 22. hxg5 {[%clk 0:01:46.9]}
22... Bg7 {[%clk 0:01:28.2]} 23. Kf1 {[%clk 0:01:31.2]} 23... Qa5 {[%clk
0:01:11.5]} 24. Qe4 {[%clk 0:00:55]} 24... Nf5 {[%clk 0:00:53.7]} 25. Qg4 {[%clk
0:00:54.5]} 25... Qxd5 {[%clk 0:00:47.7]} 26. Qh3 {[%clk 0:00:48.5]} 26... Qd3+
{[%clk 0:00:46.3]} 27. Kg2 {[%clk 0:00:45.6]} 27... Rfe8 {[%clk 0:00:42]} 28.
Qh7+ {[%clk 0:00:40.7]} 28... Kf8 {[%clk 0:00:42.1]} 29. Rb3 {[%clk 0:00:40.1]}
29... Qd6 {[%clk 0:00:29]} 0-1

[Event "*** Titled Tuesday Blitz"]
[Site "Chess.com"]
[Date "2020.05.26"]
[Round "6"]
[White "profofchess"]
[Black "Saloni1299"]
[Result "1-0"]
[WhiteElo "2488"]
[BlackElo "2308"]
[TimeControl "180+1"]
[EndTime "11:07:05 PDT"]
[Termination "profofchess won by resignation"]

1. e4 {[%clk 0:03:00.9]} 1... e6 {[%clk 0:02:59]} 2. d4 {[%clk 0:02:59.8]} 2...
d5 {[%clk 0:02:58.5]} 3. Nc3 {[%clk 0:03:00.1]} 3... Bb4 {[%clk 0:02:57.4]} 4.
exd5 {[%clk 0:02:56.3]} 4... exd5 {[%clk 0:02:57.4]} 5. Bd3 {[%clk 0:02:56.9]}
5... c6 {[%clk 0:02:57.3]} 6. Nf3 {[%clk 0:02:51.3]} 6... Nf6 {[%clk 0:02:55.5]}
7. O-O {[%clk 0:02:48.6]} 7... O-O {[%clk 0:02:55.8]} 8. Ne2 {[%clk 0:02:46.8]}
8... Bg4 {[%clk 0:02:55.1]} 9. Ng3 {[%clk 0:02:45.9]} 9... h6 {[%clk 0:02:45.7]}
10. h3 {[%clk 0:02:45.5]} 10... Be6 {[%clk 0:02:42.7]} 11. Ne5 {[%clk
0:02:40.2]} 11... Bd6 {[%clk 0:02:33.6]} 12. f4 {[%clk 0:02:37.5]} 12... c5
{[%clk 0:02:31.2]} 13. c3 {[%clk 0:02:27.1]} 13... Nc6 {[%clk 0:02:28.6]} 14.
Nxc6 {[%clk 0:02:21.4]} 14... bxc6 {[%clk 0:02:26.9]} 15. Nh5 {[%clk 0:02:11.9]}
15... cxd4 {[%clk 0:02:19.6]} 16. cxd4 {[%clk 0:02:10.9]} 16... Nxh5 {[%clk
0:02:17.2]} 17. Qxh5 {[%clk 0:02:09.9]} 17... Qf6 {[%clk 0:02:17.7]} 18. Be3
{[%clk 0:02:06]} 18... Rab8 {[%clk 0:02:08.9]} 19. f5 {[%clk 0:02:01.5]} 19...
Bd7 {[%clk 0:02:06.9]} 20. b3 {[%clk 0:01:58.6]} 20... Rb4 {[%clk 0:02:04.3]}
21. Rad1 {[%clk 0:01:47.2]} 21... Bc7 {[%clk 0:01:43.4]} 22. Bb1 {[%clk
0:01:44]} 22... c5 {[%clk 0:01:40.7]} 23. g4 {[%clk 0:00:32.2]} 23... cxd4
{[%clk 0:01:37.9]} 24. g5 {[%clk 0:00:31.8]} 24... hxg5 {[%clk 0:01:09.1]} 25.
Bxg5 {[%clk 0:00:32.7]} 25... Qe5 {[%clk 0:01:09.2]} 26. Bf4 {[%clk 0:00:32.4]}
26... Qxf4 {[%clk 0:00:57.2]} 27. Rxf4 {[%clk 0:00:31.7]} 27... Bxf4 {[%clk
0:00:57.7]} 28. f6 {[%clk 0:00:31.2]} 28... Be3+ {[%clk 0:00:57.8]} 29. Kh1
{[%clk 0:00:27.9]} 29... Bh6 {[%clk 0:00:45.2]} 30. Rg1 {[%clk 0:00:21.4]} 30...
d3 {[%clk 0:00:27.2]} 31. Qxh6 {[%clk 0:00:16.3]} 1-0

[Event "*** Titled Tuesday Blitz"]
[Site "Chess.com"]
[Date "2020.05.26"]
[Round "6"]
[White "Aleksandr_Kozak"]
[Black "vinniethepooh"]
[Result "0-1"]
[WhiteElo "2340"]
[BlackElo "2572"]
[TimeControl "180+1"]
[EndTime "11:07:06 PDT"]
[Termination "vinniethepooh won on time"]

1. e4 {[%clk 0:03:00.9]} 1... c5 {[%clk 0:02:59.9]} 2. c3 {[%clk 0:03:00.2]}
2... d5 {[%clk 0:02:59.4]} 3. exd5 {[%clk 0:02:59.7]} 3... Qxd5 {[%clk
0:03:00.3]} 4. d4 {[%clk 0:02:59.7]} 4... Nf6 {[%clk 0:03:00.1]} 5. Nf3 {[%clk
0:02:59.3]} 5... e6 {[%clk 0:03:00.3]} 6. Be2 {[%clk 0:02:57.8]} 6... Nc6 {[%clk
0:02:59.9]} 7. O-O {[%clk 0:02:57.4]} 7... cxd4 {[%clk 0:02:57.9]} 8. cxd4
{[%clk 0:02:56.6]} 8... Be7 {[%clk 0:02:58.4]} 9. Nc3 {[%clk 0:02:55.8]} 9...
Qd6 {[%clk 0:02:58.5]} 10. Nb5 {[%clk 0:02:55.5]} 10... Qd8 {[%clk 0:02:57.9]}
11. Bf4 {[%clk 0:02:54]} 11... Nd5 {[%clk 0:02:55]} 12. Bg3 {[%clk 0:02:53.5]}
12... a6 {[%clk 0:02:43.8]} 13. Nc3 {[%clk 0:02:52]} 13... O-O {[%clk
0:02:35.3]} 14. Rc1 {[%clk 0:02:49.9]} 14... h6 {[%clk 0:02:33.3]} 15. a3 {[%clk
0:02:46.8]} 15... Bf6 {[%clk 0:02:28.2]} 16. Bc4 {[%clk 0:02:42.4]} 16... Nxc3
{[%clk 0:02:27.2]} 17. bxc3 {[%clk 0:02:37.9]} 17... b5 {[%clk 0:02:27.3]} 18.
Bd3 {[%clk 0:02:36.7]} 18... Bb7 {[%clk 0:02:27.4]} 19. a4 {[%clk 0:02:28.2]}
19... b4 {[%clk 0:02:23]} 20. cxb4 {[%clk 0:02:26.4]} 20... Nxb4 {[%clk
0:02:19.8]} 21. Bb1 {[%clk 0:02:15.5]} 21... a5 {[%clk 0:02:09.2]} 22. Ne5
{[%clk 0:02:03.6]} 22... Rc8 {[%clk 0:01:49.9]} 23. Rxc8 {[%clk 0:02:00.5]}
23... Qxc8 {[%clk 0:01:50.8]} 24. Qd2 {[%clk 0:01:51.3]} 24... Bd5 {[%clk
0:01:34.9]} 25. Rc1 {[%clk 0:01:42.7]} 25... Qb7 {[%clk 0:01:34]} 26. f3 {[%clk
0:01:39.9]} 26... Rc8 {[%clk 0:01:30.5]} 27. h4 {[%clk 0:01:29.9]} 27... h5
{[%clk 0:01:26.2]} 28. Rc5 {[%clk 0:01:21.8]} 28... Rxc5 {[%clk 0:01:19.7]} 29.
dxc5 {[%clk 0:01:20.4]} 29... Nc6 {[%clk 0:01:11.9]} 30. Qc2 {[%clk 0:00:37]}
30... Bxe5 {[%clk 0:01:02]} 31. Qh7+ {[%clk 0:00:34.7]} 31... Kf8 {[%clk
0:01:02.1]} 32. Bxe5 {[%clk 0:00:22.3]} 32... Nxe5 {[%clk 0:01:03]} 33. Bc2
{[%clk 0:00:21.5]} 33... Qb2 {[%clk 0:00:57.5]} 34. Kh2 {[%clk 0:00:07.6]} 34...
Qd4 {[%clk 0:00:54.9]} 0-1

[Event "*** Titled Tuesday Blitz"]
[Site "Chess.com"]
[Date "2020.05.26"]
[Round "6"]
[White "Grandelicious"]
[Black "stanyga"]
[Result "1-0"]
[WhiteElo "2797"]
[BlackElo "2606"]
[TimeControl "180+1"]
[EndTime "11:07:07 PDT"]
[Termination "Grandelicious won by resignation"]

1. Nf3 {[%clk 0:03:00.9]} 1... Nf6 {[%clk 0:02:59.5]} 2. g3 {[%clk 0:03:00.6]}
2... g6 {[%clk 0:02:58.6]} 3. Bg2 {[%clk 0:03:00.8]} 3... Bg7 {[%clk 0:02:59.5]}
4. b3 {[%clk 0:03:01.5]} 4... Ne4 {[%clk 0:02:58.2]} 5. c3 {[%clk 0:02:56.8]}
5... c5 {[%clk 0:02:57.5]} 6. Bb2 {[%clk 0:02:53.7]} 6... d5 {[%clk 0:02:56.3]}
7. O-O {[%clk 0:02:49.1]} 7... Nc6 {[%clk 0:02:55.3]} 8. d3 {[%clk 0:02:36.2]}
8... Nd6 {[%clk 0:02:54.1]} 9. Nbd2 {[%clk 0:02:23.7]} 9... Nb5 {[%clk
0:02:46.8]} 10. Qc2 {[%clk 0:02:20.1]} 10... d4 {[%clk 0:02:45.3]} 11. cxd4
{[%clk 0:01:31.1]} 11... Nbxd4 {[%clk 0:02:27.5]} 12. Nxd4 {[%clk 0:01:29.7]}
12... Nxd4 {[%clk 0:02:26.6]} 13. Bxd4 {[%clk 0:01:29.5]} 13... Bxd4 {[%clk
0:01:47.7]} 14. Rac1 {[%clk 0:01:28.2]} 14... O-O {[%clk 0:01:46.7]} 15. Ne4
{[%clk 0:01:20.5]} 15... Bf5 {[%clk 0:00:56.4]} 16. e3 {[%clk 0:01:19.7]} 16...
Bg7 {[%clk 0:00:54]} 17. Nxc5 {[%clk 0:01:18.6]} 17... Rc8 {[%clk 0:00:53.2]}
18. Bxb7 {[%clk 0:01:07.7]} 18... Rc7 {[%clk 0:00:47.6]} 19. Bg2 {[%clk
0:01:07.6]} 19... Qc8 {[%clk 0:00:41.8]} 20. b4 {[%clk 0:01:06]} 20... Rd8
{[%clk 0:00:37.4]} 21. Qb3 {[%clk 0:00:52.5]} 21... a5 {[%clk 0:00:29.7]} 22. a3
{[%clk 0:00:52.2]} 22... axb4 {[%clk 0:00:28.9]} 23. axb4 {[%clk 0:00:53.1]}
23... e5 {[%clk 0:00:21.1]} 24. Bd5 {[%clk 0:00:48.7]} 24... Bh3 {[%clk
0:00:16.8]} 25. Rfe1 {[%clk 0:00:46.8]} 25... Qf5 {[%clk 0:00:14.8]} 26. b5
{[%clk 0:00:40.3]} 26... Rdc8 {[%clk 0:00:12.1]} 27. b6 {[%clk 0:00:40.6]} 27...
Rxc5 {[%clk 0:00:11.5]} 28. Rxc5 {[%clk 0:00:41.5]} 28... Rxc5 {[%clk
0:00:11.8]} 29. b7 {[%clk 0:00:42.2]} 29... Rc8 {[%clk 0:00:10.3]} 30. bxc8=Q+
{[%clk 0:00:39.2]} 30... Qxc8 {[%clk 0:00:11.2]} 31. Bxf7+ {[%clk 0:00:39.5]}
31... Kh8 {[%clk 0:00:10.6]} 32. Bd5 {[%clk 0:00:39.6]} 1-0

[Event "*** Titled Tuesday Blitz"]
[Site "Chess.com"]
[Date "2020.05.26"]
[Round "6"]
[White "CraiggoryC"]
[Black "luizwas"]
[Result "0-1"]
[WhiteElo "2099"]
[BlackElo "1840"]
[TimeControl "180+1"]
[EndTime "11:07:09 PDT"]
[Termination "luizwas won by resignation"]

1. e4 {[%clk 0:03:00.9]} 1... e6 {[%clk 0:03:00.2]} 2. d4 {[%clk 0:02:59.8]}
2... d5 {[%clk 0:03:00.9]} 3. e5 {[%clk 0:03:00.4]} 3... c5 {[%clk 0:03:00.7]}
4. c3 {[%clk 0:03:00.9]} 4... Nc6 {[%clk 0:03:00.7]} 5. Nf3 {[%clk 0:03:01.5]}
5... Qb6 {[%clk 0:03:01]} 6. a3 {[%clk 0:03:01.8]} 6... Nh6 {[%clk 0:03:00.9]}
7. b4 {[%clk 0:02:59.9]} 7... cxd4 {[%clk 0:02:59.6]} 8. cxd4 {[%clk 0:03:00.8]}
8... Nf5 {[%clk 0:02:59.4]} 9. Be3 {[%clk 0:02:53.2]} 9... Nxe3 {[%clk
0:02:24.6]} 10. fxe3 {[%clk 0:02:51.2]} 10... Be7 {[%clk 0:02:25]} 11. Bd3
{[%clk 0:02:48.6]} 11... O-O {[%clk 0:02:24.5]} 12. O-O {[%clk 0:02:44.8]} 12...
f6 {[%clk 0:02:12.5]} 13. b5 {[%clk 0:02:24.8]} 13... Na5 {[%clk 0:02:10.9]} 14.
Nc3 {[%clk 0:02:20]} 14... Bd7 {[%clk 0:02:05]} 15. exf6 {[%clk 0:02:11.1]}
15... Bxf6 {[%clk 0:02:03.7]} 16. Na4 {[%clk 0:02:10.5]} 16... Qc7 {[%clk
0:01:57.8]} 17. Rc1 {[%clk 0:02:06.6]} 17... Qd6 {[%clk 0:01:57]} 18. Nc5 {[%clk
0:02:00.2]} 18... Rac8 {[%clk 0:01:46.1]} 19. Ne5 {[%clk 0:01:15.3]} 19... Rxc5
{[%clk 0:01:13.8]} 20. Rxc5 {[%clk 0:01:01.4]} 20... Bxe5 {[%clk 0:01:13.1]} 21.
Bxh7+ {[%clk 0:00:10.3]} 21... Kxh7 {[%clk 0:01:07.5]} 22. Qh5+ {[%clk
0:00:09.9]} 22... Kg8 {[%clk 0:01:04.4]} 23. Rxf8+ {[%clk 0:00:08.8]} 23... Qxf8
{[%clk 0:00:54.1]} 24. Qxe5 {[%clk 0:00:08.7]} 24... Nc4 {[%clk 0:00:42.1]} 25.
Qc7 {[%clk 0:00:08.1]} 25... Nxe3 {[%clk 0:00:35.6]} 26. Rc1 {[%clk 0:00:07.7]}
26... Bxb5 {[%clk 0:00:31]} 27. Qxb7 {[%clk 0:00:07.7]} 27... a6 {[%clk
0:00:27.9]} 28. Rc8 {[%clk 0:00:07.4]} 28... Be8 {[%clk 0:00:24.8]} 29. h3
{[%clk 0:00:06.3]} 29... Qf1+ {[%clk 0:00:23.9]} 0-1